bitfinex-derivatives/quotes_BTCF0:USTF0_20250411
["timestamp","ask_amount","ask_price","bid_price","bid_amount"]
[1744382633237,0.70108346,81960.0,81959.0,4e-05]
[1744382633441,0.1220812,81952.0,81951.0,0.00023698]
[1744382633636,0.1220812,81952.0,81951.0,0.00018298]
[1744382633837,0.1220812,81952.0,81951.0,0.00022298]
[1744382634138,0.2533812,81952.0,81951.0,0.00022298]
[1744382634334,0.5272812,81952.0,81951.0,0.00022298]
[1744382634642,0.1221214,81926.0,81925.0,0.1221171]
[1744382634846,1.07368346,81952.0,81931.0,0.1831647]
[1744382634847,0.1831697,81932.0,81931.0,0.1831647]
[1744382635146,0.1221184,81928.0,81927.0,0.1221179]
[1744382635637,0.1221184,81928.0,81927.0,0.2578179]
[1744382635941,0.1312,81929.0,81928.0,0.1221169]
[1744382636137,0.2704,81929.0,81928.0,0.1221169]
[1744382637541,0.3925154,81929.0,81928.0,0.1221169]
[1744382637742,0.1221169,81928.0,81927.0,0.1357]
[1744382637939,0.1221169,81928.0,81927.0,0.2578184]
[1744382638140,0.2704,81929.0,81928.0,0.1221169]
[1744382638342,0.2704,81929.0,81928.0,0.2578169]
[1744382638637,0.3925154,81929.0,81928.0,0.2578169]
[1744382639444,0.00018309,81936.0,81928.0,0.2578169]
[1744382639445,0.00018309,81936.0,81935.0,0.1221065]
[1744382640247,0.12228809,81936.0,81935.0,0.1221065]
[1744382640637,0.1221167,81931.0,81930.0,0.1221126]
[1744382640842,0.00018309,81936.0,81930.0,0.3608]
[1744382641139,0.00018309,81936.0,81935.0,0.1221065]
[1744382641445,0.00018309,81936.0,81935.0,0.2551065]
[1744382641741,9e-08,81936.0,81935.0,0.5107265]
[1744382642047,9e-08,81936.0,81935.0,0.3898065]
[1744382642952,9e-08,81936.0,81935.0,0.3898465]
[1744382643633,9e-08,81936.0,81935.0,0.3898065]
[1744382643948,9e-08,81936.0,81935.0,0.3898465]
[1744382648147,9e-08,81936.0,81935.0,0.5259465]
[1744382648446,9e-08,81936.0,81935.0,0.6468665]
[1744382649940,9e-08,81936.0,81935.0,0.8968665]
[1744382650148,0.41848346,81981.0,81971.0,0.1220529]
[1744382650339,0.0610369,81957.0,81945.0,0.3608]
[1744382650539,0.1220876,81950.0,81949.0,0.122081]
[1744382650850,0.1831254,81952.0,81951.0,0.0610407]
[1744382651048,0.1831318,81950.0,81949.0,0.1220827]
[1744382651242,0.1220901,81946.0,81945.0,4e-05]
[1744382651553,0.41848346,81946.0,81943.0,0.0610473]
[1744382651848,0.55278346,81946.0,81945.0,0.1220916]
[1744382652051,0.55278346,81946.0,81945.0,0.1000916]
[1744382652255,0.1343,81946.0,81945.0,0.1000916]
[1744382652555,0.1343,81946.0,81945.0,0.3752316]
[1744382652752,0.1333,81951.0,81950.0,0.1220841]
[1744382653047,0.1343,81952.0,81951.0,0.1220827]
[1744382653346,0.1343,81952.0,81945.0,0.1831727]
[1744382653347,0.1220901,81946.0,81945.0,0.1831727]
[1744382654148,0.3936901,81946.0,81945.0,0.1831327]
[1744382654350,0.1220931,81944.0,81943.0,0.5439382]
[1744382654855,0.1379,81944.0,81943.0,0.5439382]
[1744382655149,0.2557752,81956.0,81955.0,0.1220767]
[1744382655351,0.0610255,81973.0,81954.0,0.0610391]
[1744382655352,0.41848346,81974.0,81957.0,0.1220737]
[1744382655547,0.1337,81971.0,81957.0,0.1220737]
[1744382655744,0.1337,81971.0,81957.0,0.6150737]
[1744382655947,0.1337,81971.0,81957.0,0.3928737]
[1744382656158,0.0610291,81968.0,81957.0,0.3928737]
[1744382656341,0.1220641,81964.0,81957.0,0.5297737]
[1744382656542,0.1220618,81966.0,81957.0,0.8905737]
[1744382656853,0.255761,81966.0,81957.0,0.8905737]
[1744382657049,0.1947302,81966.0,81957.0,0.8905737]
[1744382657242,0.2557611,81966.0,81957.0,0.8905737]
[1744382657447,0.2557611,81966.0,81957.0,0.90298963]
[1744382657858,0.1337,81966.0,81957.0,0.90298963]
[1744382658157,0.2557606,81966.0,81957.0,0.90298963]
[1744382658451,0.14222627,81974.0,81957.0,0.90298963]
[1744382658647,9e-08,81958.0,81957.0,0.90298963]
[1744382663352,9e-08,81958.0,81957.0,1.15298963]
[1744382665153,9e-08,81958.0,81957.0,0.90298963]
[1744382668165,9e-08,81958.0,81957.0,0.90302963]
[1744382668663,9e-08,81958.0,81957.0,0.90298963]
[1744382668865,9e-08,81958.0,81957.0,0.90302963]
[1744382669056,9e-08,81958.0,81957.0,0.90298963]
[1744382669257,9e-08,81958.0,81957.0,0.90302963]
[1744382670460,0.282,81976.0,81975.0,0.1220469]
[1744382670663,0.1373,81976.0,81975.0,0.4828469]
[1744382670861,5.401e-05,81986.0,81985.0,0.122032]
[1744382670862,0.1332,81986.0,81985.0,0.122032]
[1744382671054,5.401e-05,81989.0,81988.0,0.1220276]
[1744382671257,0.1332,81999.0,81998.0,0.1220127]
[1744382671457,0.1332,81999.0,81998.0,0.4828127]
[1744382671963,5.401e-05,82006.0,82005.0,0.1220023]
[1744382672164,9.842e-05,82013.0,82005.0,0.1220023]
[1744382672165,7.291e-05,82032.0,82016.0,0.0609924]
[1744382672369,0.19754181,82028.0,82027.0,0.4827695]
[1744382672555,0.00017937,82030.0,82029.0,0.1219666]
[1744382672754,0.00059575,82036.0,82027.0,0.421784]
[1744382672755,0.11752006,82034.0,82033.0,0.1219606]
[1744382672960,0.11752006,82034.0,82033.0,0.4827606]
[1744382673766,0.23947956,82034.0,82033.0,0.1219606]
[1744382673968,0.1219681,82028.0,82027.0,0.3608]
[1744382674160,0.1829464,82032.0,82031.0,0.1219621]
[1744382674363,0.4329464,82032.0,82031.0,0.1219621]
[1744382674560,0.1219651,82030.0,82029.0,0.182948]
[1744382674759,0.1219651,82030.0,82029.0,0.160948]
[1744382674960,0.1219681,82028.0,82027.0,0.4217844]
[1744382675361,0.3719681,82028.0,82027.0,0.4217844]
[1744382675568,0.7950681,82028.0,82027.0,0.4217844]
[1744382676068,0.7950681,82028.0,82025.0,0.12215386]
[1744382676069,0.7340847,82028.0,82025.0,0.00018286]
[1744382676260,0.482771,82026.0,82025.0,0.00018286]
[1744382676664,0.732771,82026.0,82025.0,0.00018286]
[1744382676872,0.371971,82026.0,82025.0,0.00018286]
[1744382677167,0.79045446,82026.0,82025.0,0.00018286]
[1744382677374,0.79045446,82026.0,82012.0,4e-05]
[1744382677375,0.1219904,82013.0,82012.0,4e-05]
[1744382677566,0.3608,82013.0,82003.0,0.3608]
[1744382677866,0.0609991,82008.0,82007.0,0.1219993]
[1744382678073,0.4079928,82012.0,82011.0,0.1219933]
[1744382678268,0.286,82012.0,82011.0,0.1219933]
[1744382679170,0.28604,82012.0,82011.0,0.1219933]
[1744382679764,0.28604,82012.0,82011.0,0.1220333]
[1744382681674,4e-05,82012.0,82011.0,0.4828333]
[1744382681878,0.00018286,82020.0,82019.0,0.1219814]
[1744382682083,0.14228286,82020.0,82019.0,0.1219814]
[1744382682567,0.00018286,82020.0,82019.0,0.1219814]
[1744382682772,0.00018286,82020.0,82018.0,0.3608]
[1744382682773,0.1421,82027.0,82026.0,0.121971]
[1744382682974,0.41848346,82051.0,82044.0,0.1219443]
[1744382683274,0.1219385,82048.0,82044.0,0.1219443]
[1744382683475,0.1219385,82048.0,82047.0,0.1219398]
[1744382683773,0.0609644,82055.0,82051.0,0.1219329]
[1744382684075,0.1219393,82048.0,82047.0,0.1219388]
[1744382684276,0.1219412,82047.0,82045.0,0.0609707]
[1744382684478,0.2527412,82047.0,82046.0,0.1219413]
[1744382684970,0.1219443,82044.0,82043.0,0.3608]
[1744382685171,0.1219443,82044.0,82043.0,0.4827458]
[1744382685472,0.1308,82047.0,82044.0,0.0609714]
[1744382685671,4e-05,82044.0,82043.0,0.5437184]
[1744382685874,4e-05,82044.0,82043.0,0.3608]
[1744382686069,0.1219502,82040.0,82039.0,0.00018286]
[1744382686269,0.1219502,82040.0,82039.0,0.12213456]
[1744382686576,0.1219502,82040.0,82039.0,0.00018286]
[1744382686772,0.5401487,82041.0,82040.0,0.1219502]
[1744382686967,0.2874,82041.0,82040.0,0.1219502]
[1744382687370,0.4093487,82041.0,82040.0,0.1219502]
[1744382687570,0.1219502,82040.0,82039.0,0.00018286]
[1744382687872,0.1413,82040.0,82039.0,0.12213456]
[1744382688075,0.1413,82040.0,82039.0,0.26153456]
[1744382688378,0.0609628,82057.0,82039.0,0.26153456]
[1744382688379,0.48293528,82055.0,82054.0,0.1219294]
[1744382688566,0.0609656,82053.0,82052.0,0.1219316]
[1744382688767,0.1413,82054.0,82053.0,0.1219309]
[1744382689370,0.1413,82054.0,82053.0,0.1309757]
[1744382689973,0.2632694,82054.0,82053.0,0.1309757]
[1744382694483,0.2632694,82054.0,82053.0,0.0090448]
[1744382694687,0.2632694,82054.0,82052.0,0.121932]
[1744382694688,0.1219309,82053.0,82052.0,0.121932]
[1744382694982,0.1219383,82048.0,82047.0,0.1394]
[1744382695685,0.1219383,82048.0,82047.0,0.2443398]
[1744382695686,0.2480383,82048.0,82047.0,0.2443398]
[1744382695983,0.2480383,82048.0,82047.0,0.1224]
[1744382696379,0.2480383,82048.0,82047.0,0.2533945]
[1744382696576,0.2480383,82048.0,82047.0,0.1314547]
[1744382696772,0.2480383,82048.0,82047.0,0.0090547]
[1744382696977,0.1219413,82046.0,82045.0,0.2496404]
[1744382697583,0.2469413,82046.0,82045.0,0.2496404]
[1744382698188,0.1219413,82046.0,82045.0,0.25879664]
[1744382698988,0.1219813,82046.0,82045.0,0.39449664]
[1744382699490,0.1219813,82046.0,82045.0,0.27255624]
[1744382699686,0.3834813,82046.0,82045.0,0.27255624]
[1744382700579,0.3834813,82046.0,82039.0,0.00018286]
[1744382700580,0.0609734,82043.0,82039.0,0.00018286]
[1744382700781,0.1219502,82040.0,82039.0,0.00018286]
[1744382700982,4e-05,82046.0,82044.0,0.0609721]
[1744382701186,0.3608,82052.0,82051.0,0.1219339]
[1744382701390,9.842e-05,82053.0,82052.0,0.1219324]
[1744382701580,9.842e-05,82053.0,82052.0,0.7519324]
[1744382701776,1e-08,82055.0,82054.0,0.1219294]
[1744382701977,0.0609512,82073.0,82061.0,0.121919]
[1744382702180,0.0609554,82068.0,82064.0,0.0609568]
[1744382702394,0.1219291,82056.0,82053.0,0.0609644]
[1744382702579,0.1219234,82060.0,82059.0,0.121919]
[1744382702780,0.1219205,82060.0,82059.0,0.1937605]
[1744382702977,0.0609575,82064.0,82062.0,0.0609587]
[1744382703287,0.00023687,82068.0,82067.0,0.1219101]
[1744382703587,0.00018286,82068.0,82067.0,0.2547101]
[1744382703786,0.00022286,82068.0,82067.0,0.3789101]
[1744382703981,0.00018286,82068.0,82067.0,0.3789101]
[1744382704182,0.00022286,82068.0,82067.0,0.3789101]
[1744382704786,0.00022286,82068.0,82067.0,0.3911133]
[1744382705591,0.00022286,82068.0,82067.0,0.3789101]
[1744382705991,9.842e-05,82090.0,82082.0,0.1218878]
[1744382706189,9.842e-05,82090.0,82082.0,0.4826878]
[1744382706489,0.0609412,82086.0,82082.0,0.4826878]
[1744382706689,0.0609412,82086.0,82085.0,0.1218834]
[1744382706990,0.2125274,82104.0,82094.0,0.12187]
[1744382707187,0.2734551,82104.0,82097.0,0.1218655]
[1744382707486,0.17865043,82098.0,82097.0,0.1218655]
[1744382707695,0.17859642,82098.0,82097.0,0.1218655]
[1744382707893,0.17863642,82098.0,82097.0,0.14345186]
[1744382708187,0.17859642,82098.0,82097.0,0.40245186]
[1744382708390,0.17863642,82098.0,82097.0,0.40245186]
[1744382708782,0.21271014,82104.0,82103.0,0.1218566]
[1744382708981,9.842e-05,82125.0,82115.0,0.1218388]
[1744382709185,0.0609113,82126.0,82116.0,0.1218374]
[1744382709589,0.31251559,82130.0,82116.0,0.2504374]
[1744382709794,0.24804578,82117.0,82116.0,0.2504374]
[1744382710089,0.04240578,82117.0,82116.0,0.8612374]
[1744382710387,0.00012006,82125.0,82123.0,0.121827]
[1744382710589,0.00012006,82125.0,82124.0,0.1218255]
[1744382710780,0.00012006,82125.0,82124.0,0.2504255]
[1744382712089,0.00016006,82125.0,82124.0,0.2504255]
[1744382712284,0.00012006,82125.0,82124.0,0.6203455]
[1744382712484,0.00016006,82125.0,82124.0,0.6203455]
[1744382712685,0.17912808,82139.0,82138.0,0.1218047]
[1744382712987,0.17912808,82139.0,82138.0,0.4826047]
[1744382713496,0.25083332,82157.0,82156.0,0.121778]
[1744382713980,0.25077931,82157.0,82156.0,0.121778]
[1744382714185,0.25077931,82157.0,82156.0,0.370978]
[1744382714384,0.25081931,82157.0,82156.0,0.370978]
[1744382714985,0.25081931,82157.0,82156.0,0.38318558]
[1744382715191,0.25077931,82157.0,82156.0,0.38318558]
[1744382715386,0.25081931,82157.0,82156.0,0.39219949]
[1744382715588,0.3608,82204.0,82156.0,0.27042149]
[1744382715789,7.291e-05,82186.0,82185.0,0.1217351]
[1744382715988,0.00023129,82188.0,82185.0,0.2416551]
[1744382716184,0.1217321,82188.0,82186.0,0.2663]
[1744382716383,0.1217321,82187.0,82186.0,0.2663]
[1744382716585,0.0608584,82198.0,82186.0,0.2663]
[1744382716795,4e-05,82187.0,82186.0,0.3880336]
[1744382717799,4e-05,82187.0,82186.0,0.40022609]
[1744382718012,4e-05,82187.0,82186.0,0.65022609]
[1744382718193,0.09996,82200.0,82199.0,0.1217143]
[1744382718398,0.09996,82200.0,82199.0,0.4605143]
[1744382718808,0.1,82200.0,82199.0,0.4605143]
[1744382719105,0.09996,82200.0,82199.0,0.7180143]
[1744382719294,0.1,82200.0,82199.0,0.7180143]
[1744382719495,0.1,82200.0,82199.0,0.72706732]
[1744382719695,0.1,82200.0,82199.0,0.97706732]
[1744382720103,0.31251559,82224.0,82217.0,0.1216877]
[1744382720403,0.31251559,82224.0,82217.0,0.4824877]
[1744382720995,7.291e-05,82224.0,82223.0,0.1216788]
[1744382721192,0.1245,82234.0,82233.0,0.121664]
[1744382721492,0.1216517,82243.0,82242.0,0.1216487]
[1744382721697,0.1264,82251.0,82235.0,0.06083]
[1744382721895,5.401e-05,82241.0,82240.0,0.1216536]
[1744382722098,5.401e-05,82241.0,82239.0,0.0608269]
[1744382722099,0.0608287,82238.0,82235.0,0.1216608]
[1744382722300,0.121661,82235.0,82234.0,0.00018239]
[1744382722504,0.3117292,82237.0,82236.0,0.1216596]
[1744382722690,0.121661,82235.0,82234.0,0.12184409]
[1744382722895,0.121661,82235.0,82234.0,0.13119309]
[1744382723091,0.1216625,82234.0,82233.0,0.11984]
[1744382723294,0.4955625,82234.0,82233.0,0.11984]
[1744382723500,0.1216773,82224.0,82219.0,0.01251511]
[1744382723699,0.1216862,82218.0,82217.0,0.0089233]
[1744382723899,0.1216862,82218.0,82212.0,0.3608]
[1744382723900,0.1216936,82213.0,82212.0,0.3608]
[1744382724100,0.1216936,82213.0,82212.0,0.4824948]
[1744382724504,0.1216936,82213.0,82212.0,0.36988316]
[1744382724798,0.1217054,82205.0,82204.0,0.00018239]
[1744382724995,0.0608536,82204.0,82200.0,0.11944]
[1744382725197,0.1217114,82201.0,82200.0,0.11944]
[1744382725599,0.1217173,82197.0,82196.0,0.1655]
[1744382725907,0.0608566,82200.0,82185.0,0.0608674]
[1744382725908,0.1217336,82186.0,82185.0,0.0608674]
[1744382726092,0.3608,82188.0,82172.0,0.09744]
[1744382726298,0.1217528,82173.0,82172.0,0.09744]
[1744382726499,0.1217528,82173.0,82172.0,0.1219368]
[1744382726712,0.18259767,82174.0,82172.0,0.0001825]
[1744382726896,0.1217528,82173.0,82172.0,0.0001825]
[1744382727296,0.2491528,82173.0,82172.0,0.0001825]
[1744382727705,0.2491528,82173.0,82172.0,0.1219368]
[1744382727906,0.1274,82173.0,82172.0,0.1219368]
[1744382728097,0.12744,82173.0,82172.0,0.13088901]
[1744382728293,0.2491928,82173.0,82172.0,0.00913471]
[1744382728698,0.2491928,82173.0,82172.0,0.13088901]
[1744382728699,0.12744,82173.0,82172.0,0.13088901]
[1744382729504,0.2491928,82173.0,82172.0,0.13088901]
[1744382729702,0.2491928,82173.0,82172.0,0.0001825]
[1744382729908,0.12744,82173.0,82172.0,0.1219368]
[1744382730096,0.1274,82173.0,82172.0,0.1219368]
[1744382730296,0.12744,82173.0,82172.0,0.1219368]
[1744382730509,5.401e-05,82183.0,82182.0,0.1217395]
[1744382730806,0.1236,82191.0,82190.0,0.1217277]
[1744382731202,0.1196,82193.0,82192.0,0.1009247]
[1744382731711,0.0001825,82194.0,82190.0,0.0608631]
[1744382731712,0.0001825,82194.0,82193.0,0.1217232]
[1744382732007,0.1217017,82208.0,82191.0,0.5449626]
[1744382732215,0.1196,82207.0,82206.0,0.121704]
[1744382732915,5.401e-05,82212.0,82204.0,0.2509]
[1744382733206,0.00018147,82215.0,82214.0,0.1216921]
[1744382733803,0.00022147,82215.0,82214.0,0.12065763]
[1744382734001,0.3608,82254.0,82215.0,0.0608453]
[1744382734206,5.401e-05,82230.0,82227.0,0.0608357]
[1744382734406,0.24385401,82230.0,82229.0,0.1216699]
[1744382734703,0.2438,82230.0,82229.0,0.1216699]
[1744382734907,0.24384,82230.0,82229.0,0.1216699]
[1744382735110,0.2438,82230.0,82229.0,0.1216699]
[1744382735418,0.00018688,82241.0,82240.0,0.1216536]
[1744382735606,0.0608263,82241.0,82229.0,0.3608]
[1744382735807,0.1216649,82233.0,82229.0,0.3608]
[1744382736000,0.1216649,82233.0,82219.0,0.0608419]
[1744382736001,0.0608342,82230.0,82209.0,0.4216492]
[1744382736202,0.4824803,82222.0,82210.0,0.01213868]
[1744382736408,0.1216803,82222.0,82210.0,0.01213868]
[1744382736615,0.3716803,82222.0,82213.0,0.1216932]
[1744382736808,0.3716803,82222.0,82208.0,0.1216999]
[1744382737008,0.25,82222.0,82200.0,0.01227944]
[1744382737209,0.0608537,82204.0,82192.0,0.1194]
[1744382737420,0.1217108,82202.0,82201.0,0.1217102]
[1744382737603,0.2357,82203.0,82193.0,0.0608616]
[1744382737916,0.2357,82201.0,82200.0,0.1217128]
[1744382738317,0.2357,82201.0,82198.0,0.1217144]
[1744382738611,0.2357,82201.0,82200.0,0.1217128]
[1744382738809,0.2357,82201.0,82197.0,0.1217168]
[1744382739011,0.2357,82201.0,82200.0,0.1217128]
[1744382739611,0.23574,82201.0,82200.0,0.1217128]
[1744382740209,0.23574,82201.0,82200.0,0.13799413]
[1744382741317,4e-05,82201.0,82200.0,0.13799413]
[1744382741521,0.0001825,82206.0,82205.0,0.1217054]
[1744382741709,0.0001825,82206.0,82205.0,0.13798673]
[1744382742414,0.0002225,82206.0,82205.0,0.13798673]
[1744382742820,0.1203,82217.0,82216.0,0.1216892]
[1744382743013,0.3608,82233.0,82216.0,0.01628133]
[1744382743221,0.1301,82232.0,82227.0,0.1216714]
[1744382743516,0.1216671,82231.0,82228.0,0.13795253]
[1744382743823,0.13014,82232.0,82229.0,0.01628133]
[1744382744011,0.13014,82232.0,82231.0,0.121667]
[1744382744210,0.13014,82232.0,82231.0,0.13794833]
[1744382744718,0.1203,82239.0,82235.0,0.0608301]
[1744382745016,0.1218,82235.0,82234.0,0.1216625]
[1744382745220,0.1218,82235.0,82234.0,0.1384094]
[1744382745413,0.1203,82239.0,82236.0,0.0608297]
[1744382745714,0.1203,82239.0,82230.0,0.1185]
[1744382745715,0.2434566,82238.0,82237.0,0.0167469]
[1744382745915,0.1218,82238.0,82237.0,0.138405]
[1744382746219,0.2476,82238.0,82237.0,0.13845899]
[1744382746613,0.2476,82238.0,82237.0,0.11645899]
[1744382746913,0.3692566,82238.0,82237.0,0.01680089]
[1744382747220,0.1216608,82236.0,82235.0,0.121661]
[1744382747924,0.3084289,82238.0,82228.0,0.129]
[1744382747925,0.2476,82238.0,82237.0,0.1216581]
[1744382748122,0.36085401,82246.0,82245.0,0.1216463]
[1744382748422,0.48249881,82246.0,82245.0,0.01631069]
[1744382748718,0.0608339,82231.0,82226.0,0.21821476]
[1744382748914,0.3608,82228.0,82227.0,0.3019093]
[1744382749121,0.4824714,82228.0,82227.0,0.3019093]
[1744382749614,0.4824714,82228.0,82227.0,0.1194]
[1744382750013,0.6082714,82228.0,82227.0,0.1194]
[1744382750213,0.6082714,82228.0,82227.0,0.2410729]
[1744382750419,0.1258,82228.0,82227.0,0.1216729]
[1744382750614,0.22488782,82250.0,82227.0,0.1216729]
[1744382750615,0.06090051,82239.0,82230.0,0.27904886]
[1744382750817,0.121667,82231.0,82230.0,0.21821476]
[1744382751223,0.245667,82231.0,82230.0,0.21821476]
[1744382751523,0.245667,82231.0,82230.0,0.33988316]
[1744382751918,0.124,82231.0,82230.0,0.33988316]
[1744382752119,0.245667,82231.0,82230.0,0.46068316]
[1744382752419,0.1824929,82236.0,82235.0,0.1216581]
[1744382752617,0.124,82238.0,82237.0,0.1216581]
[1744382752814,0.12169921,82246.0,82239.0,0.0608275]
[1744382753016,0.2456477,82245.0,82244.0,0.1216477]
[1744382753221,0.24572061,82245.0,82244.0,0.1216477]
[1744382753417,0.124,82245.0,82244.0,0.1216477]
[1744382753721,0.2456863,82245.0,82244.0,0.1216477]
[1744382753917,0.1216477,82244.0,82243.0,0.2371492]
[1744382754219,0.1216477,82244.0,82243.0,0.0995]
[1744382754420,0.1216619,82235.0,82222.0,0.3608]
[1744382754619,0.3608,82236.0,82222.0,0.3608]
[1744382754825,0.1216719,82229.0,82228.0,0.1216693]
[1744382755617,0.1216719,82229.0,82225.0,0.0608379]
[1744382755618,0.1216631,82235.0,82234.0,0.121661]
[1744382756024,0.4216298,82236.0,82235.0,0.121661]
[1744382756322,0.3608,82236.0,82235.0,0.121661]
[1744382756525,0.3608,82236.0,82221.0,0.57919726]
[1744382756720,0.1216767,82225.0,82224.0,0.1216767]
[1744382756919,0.1216739,82227.0,82226.0,0.1216739]
[1744382757120,0.0608324,82233.0,82226.0,0.01594148]
[1744382757320,0.1825057,82230.0,82229.0,0.1216698]
[1744382757525,0.0608344,82230.0,82229.0,0.1216698]
[1744382758030,0.0608344,82230.0,82228.0,0.29166036]
[1744382758031,0.1216699,82229.0,82228.0,0.29166036]
[1744382758225,0.121667,82231.0,82230.0,0.0608335]
[1744382758820,0.121707,82231.0,82230.0,0.0608335]
[1744382759127,4e-05,82231.0,82230.0,0.0608335]
[1744382759519,0.121707,82231.0,82230.0,0.0608335]
[1744382759920,4e-05,82231.0,82230.0,0.0608335]
[1744382760122,4e-05,82231.0,82230.0,0.4216335]
[1744382760732,0.3608,82244.0,82241.0,0.0608253]
[1744382760923,0.1265,82243.0,82242.0,0.25314619]
[1744382761118,0.2481492,82243.0,82242.0,0.25314619]
[1744382761317,4e-05,82243.0,82242.0,0.25314619]
[1744382761520,0.1265,82251.0,82243.0,0.0608242]
[1744382761722,5.401e-05,82249.0,82247.0,0.3608]
[1744382762020,0.3608,82272.0,82247.0,0.3608]
[1744382762021,0.1216227,82261.0,82260.0,0.1216241]
[1744382762220,0.4824227,82261.0,82260.0,0.02979287]
[1744382762833,0.4824227,82261.0,82260.0,0.04643381]
[1744382763329,0.4824227,82261.0,82260.0,0.04821319]
[1744382763527,0.4824227,82261.0,82260.0,0.0482133]
[1744382763730,0.1216389,82250.0,82249.0,0.00902388]
[1744382763921,0.1216389,82250.0,82249.0,0.02197261]
[1744382764127,0.1216389,82250.0,82249.0,0.13458903]
[1744382764333,0.2444374,82251.0,82250.0,0.1216389]
[1744382764535,0.1228,82251.0,82250.0,0.13458763]
[1744382764726,5.401e-05,82258.0,82257.0,0.1216285]
[1744382765029,0.3608,82271.0,82262.0,0.1824259]
[1744382765227,0.4824209,82263.0,82262.0,0.1824259]
[1744382765423,0.1216209,82263.0,82262.0,0.13456174]
[1744382765928,0.1216209,82263.0,82262.0,0.13455899]
[1744382766128,5.401e-05,82268.0,82267.0,0.1216137]
[1744382766720,0.3608,82273.0,82271.0,0.1216063]
[1744382766920,0.3608,82273.0,82272.0,0.1265]
[1744382767131,0.4824049,82273.0,82272.0,0.1265]
[1744382767431,4e-05,82273.0,82272.0,0.26110804]
[1744382767826,4e-05,82273.0,82272.0,0.26110243]
[1744382768333,5.401e-05,82279.0,82278.0,0.1215975]
[1744382768535,5.401e-05,82279.0,82278.0,0.01299613]
[1744382768729,0.121596,82279.0,82278.0,0.01299613]
[1744382768938,4e-05,82279.0,82278.0,0.13459363]
[1744382769136,0.2374945,82281.0,82280.0,0.1215945]
[1744382769449,0.2374945,82281.0,82280.0,0.13457288]
[1744382769450,0.1159,82281.0,82280.0,0.13457288]
[1744382769625,0.4823925,82282.0,82281.0,0.121593]
[1744382769829,0.4823925,82282.0,82281.0,0.13467838]
[1744382770031,0.3608,82282.0,82281.0,0.25627138]
[1744382770831,0.36084,82282.0,82281.0,0.25627138]
[1744382771333,0.3608,82289.0,82288.0,0.1215827]
[1744382771729,0.3608,82289.0,82288.0,0.2406627]
[1744382772238,0.3608,82289.0,82288.0,0.4769627]
[1744382772538,4e-05,82289.0,82288.0,0.4769627]
[1744382772725,0.4824212,82289.0,82288.0,0.23368]
[1744382773132,0.4824212,82289.0,82288.0,0.1146]
[1744382773438,0.1215916,82282.0,82281.0,0.1202]
[1744382773632,0.1215895,82284.0,82281.0,0.1202]
[1744382773831,0.2357908,82283.0,82282.0,0.1187916]
[1744382774031,0.2357908,82283.0,82282.0,0.1202]
[1744382774933,0.2357908,82283.0,82282.0,0.1112]
[1744382775128,0.2357908,82283.0,82281.0,0.1163]
[1744382775129,0.1215916,82282.0,82281.0,0.1163]
[1744382775331,0.1215916,82282.0,82249.0,0.36979741]
[1744382775332,0.0608004,82276.0,82249.0,0.36979741]
[1744382775633,0.1216093,82270.0,82259.0,0.42574257]
[1744382775835,0.1216093,82270.0,82264.0,0.01207501]
[1744382776134,0.1216093,82270.0,82259.0,0.36493007]
[1744382776527,0.1216093,82270.0,82261.0,0.00018238]
[1744382776929,0.1216093,82270.0,82266.0,0.1148]
[1744382777234,0.1216137,82267.0,82266.0,0.1148]
[1744382777422,0.4824137,82267.0,82266.0,0.1148]
[1744382778046,0.4824537,82267.0,82266.0,0.2364152]
[1744382778634,0.4824537,82267.0,82266.0,0.1148]
[1744382780946,0.1216537,82267.0,82266.0,0.1148]
[1744382781140,0.1216137,82267.0,82266.0,0.2364152]
[1744382781441,0.1216537,82267.0,82266.0,0.2334152]
[1744382782538,0.1216537,82267.0,82266.0,0.2114152]
[1744382782734,0.4824537,82267.0,82266.0,0.0898]
[1744382782944,0.1216537,82267.0,82266.0,0.0898]
[1744382783642,0.1216211,82262.0,82261.0,0.00018238]
[1744382786836,0.1216211,82262.0,82261.0,0.11538238]
[1744382788041,0.1216211,82262.0,82261.0,0.23700498]
[1744382790443,0.1216211,82262.0,82261.0,0.09338238]
[1744382790644,0.1216389,82252.0,82251.0,0.1824534]
[1744382790840,0.0608175,82253.0,82241.0,0.1259]
[1744382791046,0.0608216,82248.0,82247.0,0.1824591]
[1744382791445,0.0608216,82248.0,82247.0,0.0608202]
[1744382792850,0.1216433,82247.0,82246.0,0.1259]
[1744382793243,0.3606433,82247.0,82246.0,0.1259]
[1744382793537,0.3606433,82247.0,82246.0,0.1177]
[1744382793938,0.3606433,82247.0,82243.0,0.2179243]
[1744382793939,0.1216477,82244.0,82243.0,0.2179243]
[1744382794349,0.3570477,82244.0,82243.0,0.2179243]
[1744382795142,0.3570477,82244.0,82240.0,0.1219]
[1744382795143,0.1216522,82241.0,82240.0,0.1219]
[1744382795550,0.3570522,82241.0,82240.0,0.2413]
[1744382795850,0.3570522,82241.0,82240.0,0.1219]
[1744382796051,0.1216536,82240.0,82239.0,0.01277726]
[1744382796555,0.3570536,82240.0,82239.0,0.01277726]
[1744382797155,0.1216684,82230.0,82229.0,0.3423243]
[1744382797347,0.4824684,82230.0,82229.0,0.3395942]
[1744382797656,0.7195684,82230.0,82229.0,0.23018962]
[1744382797855,0.7195684,82230.0,82229.0,0.2179243]
[1744382798054,0.7195684,82230.0,82220.0,0.36493007]
[1744382798055,0.060839,82224.0,82220.0,0.36493007]
[1744382798258,0.4824818,82221.0,82220.0,0.36493007]
[1744382798464,0.1216892,82217.0,82216.0,0.0608439]
[1744382798760,0.1216892,82217.0,82216.0,0.1852439]
[1744382798950,0.3587892,82217.0,82216.0,0.1852439]
[1744382799555,0.1216892,82216.0,82215.0,0.33957585]
[1744382800059,0.1216892,82216.0,82215.0,0.21788525]
[1744382800851,0.3524892,82216.0,82215.0,0.21788525]
[1744382804052,0.1216906,82215.0,82214.0,0.00018238]
[1744382804260,0.3675906,82215.0,82214.0,0.00018238]
[1744382804655,0.121701,82208.0,82207.0,0.1214]
[1744382804856,0.482501,82208.0,82207.0,0.1214]
[1744382805457,0.482501,82208.0,82207.0,0.2431025]
[1744382805655,0.728401,82208.0,82207.0,0.1214]
[1744382806365,0.00018238,82216.0,82207.0,0.843]
[1744382806657,0.12187158,82216.0,82215.0,0.4824906]
[1744382807253,0.12187158,82216.0,82215.0,0.7308906]
[1744382807455,0.12187158,82216.0,82215.0,0.3700906]
[1744382807755,0.12187158,82216.0,82215.0,0.2484]
[1744382807959,0.24617158,82216.0,82215.0,0.1245]
[1744382808264,0.36737158,82216.0,82215.0,0.1245]
[1744382809057,0.00018238,82216.0,82215.0,0.1245]
[1744382809257,0.12187158,82216.0,82215.0,0.2461906]
[1744382809556,0.12187158,82216.0,82215.0,0.8477906]